Workbook

Sheet Rn-222 Modell
A1: Vereinfachtes Modell der Rn-222-Zerfallskette
A2: Die Werte in den grün und gelb unterlegten Feldern können geändert werden
A3: T1/2 M = | B3: 26.8 | C3: min | E3: lMutter = | F3: =LN(2)/T_M -> 0.02586370077 | G3: 1/min
A4: Anzahl M = | B4: 0 | C4: Muttersubstanz
A5: T1/2 T = | B5: 19.6 | C5: min | E5: lTochter = | F5: =LN(2)/T_T1 -> 0.03536465207 | G5: 1/min
A6: Anzahl T = | B6: 0 | C6: Tochtersubstanz
A7: n = | B7: 2 | C7: Gewichtungsfaktor für Beitrag der Tochter
A8: (z. B. n=2, falls Tochter zwei weitere praktisch gleichzeitige Zerfälle induziert)
A9: Anzahl EP = | B9: 0 | C9: anfängliches Endprodukt
A10: Regelmäßige Zufuhr zur Muttersubstanz:
A11: Dauer = | B11: 120 | C11: min
A12: Anzahl = | B12: 100 | C12: pro min
A15: Zeit / min | B15: Mutter | C15: Tochter | D15: Endprodukt | E15: AMutter | F15: ATS1 | G15: Ages
A16: in min | E16: in 1/min | F16: in 1/min | G16: in 1/min
A17: 0 | B17: =IF(B4=0,0.0001,B4) -> 0.0001 | C17: =IF(B6=0,0.0001,B6) -> 0.0001 | D17: =B9 -> 0 | E17: =B17*lambdaMutter -> 2.586370077e-06 | F17: =C17*lambdaTochter1 -> 3.536465207e-06 | G17: =E17+GewFaktor*F17 -> 9.659300491e-06
A18: =A17+1 -> 1 | B18: =IF(A18<=ZufuhrDauer,B17-E17+ZufuhrAnzahl,B17-E17) -> 100.0000974 | C18: =C17+E17-F17 -> 9.904990487e-05 | D18: =D17+F17 -> 3.536465207e-06 | E18: 2.586372596 | F18: 3.502865423e-06 | G18: 2.586379602
A19: 2 | B19: 197.4137248 | C19: 2.586468143 | D19: 7.03933063e-06 | E19: 5.105849506 | F19: 0.09146954597 | G19: 5.288788598
A20: 3 | B20: 292.3078753 | C20: 7.600848103 | D20: 0.0914765853 | E20: 7.560163419 | F20: 0.2688013486 | G20: 8.097766116
A21: 4 | B21: 384.7477119 | C21: 14.89221017 | D21: 0.3602779339 | E21: 9.950999691 | F21: 0.5266578313 | G21: 11.00431535
A22: 5 | B22: 474.7967122 | C22: 24.31655203 | D22: 0.8869357652 | E22: 12.28000009 | F22: 0.8599464022 | G22: 13.99989289
A23: 6 | B23: 562.5167121 | C23: 35.73660572 | D23: 1.746882167 | E23: 14.54876392 | F23: 1.263812627 | G23: 17.07638917
A24: 7 | B24: 647.9679482 | C24: 49.02155701 | D24: 3.010694795 | E24: 16.75884912 | F24: 1.733630308 | G24: 20.22610973
A25: 8 | B25: 731.2090991 | C25: 64.04677582 | D25: 4.744325103 | E25: 18.91177334 | F25: 2.264991943 | G25: 23.44175722
A26: 9 | B26: 812.2973257 | C26: 80.69355722 | D26: 7.009317046 | E26: 21.00901497 | F26: 2.853699575 | G26: 26.71641412
A27: 10 | B27: 891.2883108 | C27: 98.84887261 | D27: 9.863016621 | E27: 23.05201417 | F27: 3.495755987 | G27: 30.04352614
A28: 11 | B28: 968.2362966 | C28: 118.4051308 | D28: 13.35877261 | E28: 25.04217385 | F28: 4.187356254 | G28: 33.41688635
A29: 12 | B29: 1043.194123 | C29: 139.2599484 | D29: 17.54612886 | E29: 26.98086063 | F29: 4.924879622 | G29: 36.83061988
A30: 13 | B30: 1116.213262 | C30: 161.3159294 | D30: 22.47100848 | E30: 28.8694058 | F30: 5.704881716 | G30: 40.27916924
A31: 14 | B31: 1187.343856 | C31: 184.4804535 | D31: 28.1758902 | E31: 30.70910621 | F31: 6.524087051 | G31: 43.75728031
A32: 15 | B32: 1256.63475 | C32: 208.6654726 | D32: 34.69997725 | E32: 32.50122515 | F32: 7.379381839 | G32: 47.25998883
A33: 16 | B33: 1324.133525 | C33: 233.7873159 | D33: 42.07935909 | E33: 34.24699327 | F33: 8.267807087 | G33: 50.78260744
A34: 17 | B34: 1389.886532 | C34: 259.7665021 | D34: 50.34716618 | E34: 35.94760936 | F34: 9.186551967 | G34: 54.32071329
A35: 18 | B35: 1453.938922 | C35: 286.5275595 | D35: 59.53371814 | E35: 37.60424122 | F35: 10.13294745 | G35: 57.87013612
A36: 19 | B36: 1516.334681 | C36: 313.9988533 | D36: 69.66666559 | E36: 39.21802646 | F36: 11.1044602 | G36: 61.42694685
A37: 20 | B37: 1577.116655 | C37: 342.1124195 | D37: 80.77112579 | E37: 40.79007323 | F37: 12.09868669 | G37: 64.9874466
A38: =A37+1 -> 21 | B38: 1636.326581 | C38: 370.8038061 | D38: 92.86981248 | E38: 42.32146106 | F38: 13.11334759 | G38: 68.54815624
A39: 22 | B39: 1694.00512 | C39: 400.0119196 | D39: 105.9831601 | E39: 43.81324153 | F39: 14.14628236 | G39: 72.10580625
A40: 23 | B40: 1750.191879 | C40: 429.6788787 | D40: 120.1294424 | E40: 45.26643904 | F40: 15.19544405 | G40: 75.65732714
A41: 24 | B41: 1804.92544 | C41: 459.7498737 | D41: 135.3248865 | E41: 46.68205148 | F41: 16.25889432 | G41: 79.19984013
A42: 25 | B42: 1858.243388 | C42: 490.1730309 | D42: 151.5837808 | E42: 48.06105095 | F42: 17.33479869 | G42: 82.73064833
A43: 26 | B43: 1910.182337 | C43: 520.8992831 | D43: 168.9185795 | E43: 49.40438438 | F43: 18.42142191 | G43: 86.24722821
A44: 27 | B44: 1960.777953 | C44: 551.8822456 | D44: 187.3400014 | E44: 50.71297425 | F44: 19.5171236 | G44: 89.74722145
A45: 28 | B45: 2010.064979 | C45: 583.0780963 | D45: 206.857125 | E45: 51.98771913 | F45: 20.620354 | G45: 93.22842714
A46: 29 | B46: 2058.07726 | C46: 614.4454614 | D46: 227.477479 | E46: 53.2294944 | F46: 21.72964996 | G46: 96.68879431
A47: 30 | B47: 2104.847765 | C47: 645.9453058 | D47: 249.207129 | E47: 54.43915276 | F47: 22.843631 | G47: 100.1264148
A48: 31 | B48: 2150.408612 | C48: 677.5408276 | D48: 272.05076 | E48: 55.61752488 | F48: 23.96099563 | G48: 103.5395161
A49: 32 | B49: 2194.791088 | C49: 709.1973568 | D49: 296.0117556 | E49: 56.76541994 | F49: 25.08051777 | G49: 106.9264555
A50: 33 | B50: 2238.025668 | C50: 740.882259 | D50: 321.0922734 | E50: 57.88362618 | F50: 26.20104331 | G50: 110.2857128
A51: 34 | B51: 2280.142041 | C51: 772.5648419 | D51: 347.2933167 | E51: 58.97291147 | F51: 27.32148683 | G51: 113.6158851
A52: 35 | B52: 2321.16913 | C52: 804.2162665 | D52: 374.6148035 | E52: 60.03402381 | F52: 28.44082845 | G52: 116.9156807
A53: 36 | B53: 2361.135106 | C53: 835.8094619 | D53: 403.055632 | E53: 61.06769186 | F53: 29.55811081 | G53: 120.1839135
A54: 37 | B54: 2400.067414 | C54: 867.3190429 | D54: 432.6137428 | E54: 62.07462543 | F54: 30.67243619 | G54: 123.4194978
A55: 38 | B55: 2437.992789 | C55: 898.7212321 | D55: 463.286179 | E55: 63.05551596 | F55: 31.78296368 | G55: 126.6214433
A56: 39 | B56: 2474.937273 | C56: 929.9937844 | D56: 495.0691426 | E56: 64.01103704 | F56: 32.88890661 | G56: 129.7888503
A57: 40 | B57: 2510.926236 | C57: 961.1159149 | D57: 527.9580493 | E57: 64.94184481 | F57: 33.98952993 | G57: 132.9209047
A58: 41 | B58: 2545.984391 | C58: 992.0682297 | D58: 561.9475792 | E58: 65.84857845 | F58: 35.08414777 | G58: 136.016874
A59: 42 | B59: 2580.135813 | C59: 1022.83266 | D59: 597.031727 | E59: 66.7318606 | F59: 36.17212116 | G59: 139.0761029
A60: 43 | B60: 2613.403952 | C60: 1053.3924 | D60: 633.2038481 | E60: 67.5922978 | F60: 37.25285571 | G60: 142.0980092
A61: 44 | B61: 2645.811654 | C61: 1083.731842 | D61: 670.4567038 | E61: 68.43048091 | F61: 38.32579953 | G61: 145.08208
A62: 45 | B62: 2677.381173 | C62: 1113.836523 | D62: 708.7825034 | E62: 69.24698551 | F62: 39.39044111 | G62: 148.0278677
A63: 46 | B63: 2708.134188 | C63: 1143.693068 | D63: 748.1729445 | E63: 70.04237227 | F63: 40.44630741 | G63: 150.9349871
A64: 47 | B64: 2738.091816 | C64: 1173.289133 | D64: 788.6192519 | E64: 70.81718739 | F64: 41.49296195 | G64: 153.8031113
A65: 48 | B65: 2767.274628 | C65: 1202.613358 | D65: 830.1122138 | E65: 71.57196292 | F65: 42.53000298 | G65: 156.6319689
A66: 49 | B66: 2795.702665 | C66: 1231.655318 | D66: 872.6422168 | E66: 72.30721717 | F66: 43.55706179 | G66: 159.4213407
A67: 50 | B67: 2823.395448 | C67: 1260.405473 | D67: 916.1992786 | E67: 73.02345502 | F67: 44.57380103 | G67: 162.1710571
A68: 51 | B68: 2850.371993 | C68: 1288.855127 | D68: 960.7730796 | E68: 73.7211683 | F68: 45.57991315 | G68: 164.8809946
A69: 52 | B69: 2876.650825 | C69: 1316.996382 | D69: 1006.352993 | E69: 74.40083614 | F69: 46.57511884 | G69: 167.5510738
A70: 53 | B70: 2902.249989 | C70: 1344.8221 | D70: 1052.928112 | E70: 75.06292526 | F70: 47.55916565 | G70: 170.1812566
A71: 54 | B71: 2927.187063 | C71: 1372.325859 | D71: 1100.487277 | E71: 75.7078903 | F71: 48.53182654 | G71: 172.7715434
A72: 55 | B72: 2951.479173 | C72: 1399.501923 | D72: 1149.019104 | E72: 76.33617415 | F72: 49.49289858 | G72: 175.3219713
A73: 56 | B73: 2975.142999 | C73: 1426.345199 | D73: 1198.512002 | E73: 76.94820826 | F73: 50.44220168 | G73: 177.8326116
A74: 57 | B74: 2998.194791 | C74: 1452.851205 | D74: 1248.954204 | E74: 77.54441291 | F74: 51.37957738 | G74: 180.3035677
A75: 58 | B75: 3020.650378 | C75: 1479.016041 | D75: 1300.333781 | E75: 78.12519749 | F75: 52.30488769 | G75: 182.7349729
A76: 59 | B76: 3042.52518 | C76: 1504.836351 | D76: 1352.638669 | E76: 78.69096084 | F76: 53.21801396 | G76: 185.1269888
A77: 60 | B77: 3063.834219 | C77: 1530.309297 | D77: 1405.856683 | E77: 79.24209145 | F77: 54.11885586 | G77: 187.4798032
A78: 61 | B78: 3084.592128 | C78: 1555.432533 | D78: 1459.975539 | E78: 79.77896779 | F78: 55.00733035 | G78: 189.7936285
A79: 62 | B79: 3104.81316 | C79: 1580.204171 | D79: 1514.982869 | E79: 80.30195851 | F79: 55.88337069 | G79: 192.0686999
A80: 63 | B80: 3124.511202 | C80: 1604.622758 | D80: 1570.86624 | E80: 80.81142276 | F80: 56.74692555 | G80: 194.3052739
A81: 64 | B81: 3143.699779 | C81: 1628.687256 | D81: 1627.613166 | E81: =B81*lambdaMutter -> 81.30771038 | F81: =C81*lambdaTochter1 -> 57.59795812 | G81: =E81+GewFaktor*F81 -> 196.5036266
A82: 65 | B82: =IF(A82<=ZufuhrDauer,B81-E81+ZufuhrAnzahl,B81-E81) -> 3162.392069 | C82: =C81+E81-F81 -> 1652.397008 | D82: =D81+F81 -> 1685.211124 | E82: 81.79116217 | F82: 58.43644526 | G82: 198.6640527
A83: 66 | B83: 3180.600906 | C83: 1675.751725 | D83: 1743.647569 | E83: 82.2621101 | F83: 59.2623767 | G83: 200.7868635
A84: 67 | B84: 3198.338796 | C84: 1698.751458 | D84: 1802.909946 | E84: 82.72087758 | F84: 60.07575427 | G84: 202.8723861
A85: 68 | B85: 3215.617919 | C85: 1721.396581 | D85: 1862.9857 | E85: 83.16777963 | F85: 60.87659118 | G85: 204.920962
A86: 69 | B86: 3232.450139 | C86: 1743.68777 | D86: 1923.862291 | E86: 83.60312314 | F86: 61.6649113 | G86: 206.9329457
A87: 70 | B87: 3248.847016 | C87: 1765.625982 | D87: 1985.527202 | E87: 84.02720706 | F87: 62.44074853 | G87: 208.9087041
A88: 71 | B88: 3264.819809 | C88: 1787.21244 | D88: 2047.967951 | E88: 84.44032259 | F88: 63.20414612 | G88: 210.8486148
A89: 72 | B89: 3280.379486 | C89: 1808.448617 | D89: 2111.172097 | E89: 84.84275343 | F89: 63.95515612 | G89: 212.7530657
A90: 73 | B90: 3295.536733 | C90: 1829.336214 | D90: 2175.127253 | E90: 85.23477592 | F90: 64.69383873 | G90: 214.6224534
A91: 74 | B91: 3310.301957 | C91: 1849.877151 | D91: 2239.821092 | E91: 85.61665926 | F91: 65.42026182 | G91: 216.4571829
A92: 75 | B92: 3324.685298 | C92: 1870.073549 | D92: 2305.241354 | E92: 85.98866568 | F92: 66.13450039 | G92: 218.2576665
A93: 76 | B93: 3338.696632 | C93: 1889.927714 | D93: 2371.375854 | E93: 86.35105064 | F93: 66.83663604 | G93: 220.0243227
A94: 77 | B94: 3352.345581 | C94: 1909.442129 | D94: 2438.21249 | E94: 86.70406298 | F94: 67.52675652 | G94: 221.757576
A95: 78 | B95: 3365.641518 | C95: 1928.619435 | D95: 2505.739247 | E95: 87.04794512 | F95: 68.20495529 | G95: 223.4578557
A96: 79 | B96: 3378.593573 | C96: 1947.462425 | D96: 2573.944202 | E96: 87.38293319 | F96: 68.87133107 | G96: 225.1255953
A97: 80 | B97: 3391.21064 | C97: 1965.974027 | D97: 2642.815533 | E97: 87.70925723 | F97: 69.52598744 | G97: 226.7612321
A98: 81 | B98: 3403.501383 | C98: 1984.157297 | D98: 2712.34152 | E98: 88.02714132 | F98: 70.16903245 | G98: 228.3652062
A99: 82 | B99: 3415.474241 | C99: 2002.015406 | D99: 2782.510553 | E99: 88.33680376 | F99: 70.80057826 | G99: 229.9379603
A100: 83 | B100: 3427.137438 | C100: 2019.551631 | D100: 2853.311131 | E100: 88.63845718 | F100: 71.42074077 | G100: 231.4799387
A101: 84 | B101: 3438.498981 | C101: 2036.769348 | D101: 2924.731872 | E101: 88.93230872 | F101: 72.02963932 | G101: 232.9915874
A102: =A101+1 -> 85 | B102: 3449.566672 | C102: 2053.672017 | D102: 2996.761511 | E102: 89.21856018 | F102: 72.62739634 | G102: 234.4733529
A103: 86 | B103: 3460.348112 | C103: 2070.263181 | D103: 3069.388908 | E103: 89.49740811 | F103: 73.21413708 | G103: 235.9256823
A104: 87 | B104: 3470.850704 | C104: 2086.546452 | D104: 3142.603045 | E104: 89.769044 | F104: 73.78998929 | G104: 237.3490226
A105: 88 | B105: 3481.081659 | C105: 2102.525507 | D105: 3216.393034 | E105: 90.03365439 | F105: 74.355083 | G105: 238.7438204
A106: 89 | B106: 3491.048005 | C106: 2118.204078 | D106: 3290.748117 | E106: 90.29142097 | F106: 74.90955023 | G106: 240.1105214
A107: 90 | B107: 3500.756584 | C107: 2133.585949 | D107: 3365.657667 | E107: 90.54252075 | F107: 75.45352473 | G107: 241.4495702
A108: 91 | B108: 3510.214063 | C108: 2148.674945 | D108: 3441.111192 | E108: 90.78712616 | F108: 75.98714183 | G108: 242.7614098
A109: 92 | B109: 3519.426937 | C109: 2163.474929 | D109: 3517.098334 | E109: 91.02540518 | F109: 76.51053812 | G109: 244.0464814
A110: 93 | B110: 3528.401532 | C110: 2177.989796 | D110: 3593.608872 | E110: 91.25752141 | F110: 77.02385135 | G110: 245.3052241
A111: 94 | B111: 3537.144011 | C111: 2192.223466 | D111: 3670.632723 | E111: 91.48363426 | F111: 77.52722014 | G111: 246.5380745
A112: 95 | B112: 3545.660376 | C112: 2206.17988 | D112: 3748.159943 | E112: 91.703899 | F112: 78.02078387 | G112: 247.7454667
A113: 96 | B113: 3553.956477 | C113: 2219.862995 | D113: 3826.180727 | E113: 91.91846687 | F113: 78.50468247 | G113: 248.9278318
A114: 97 | B114: 3562.038011 | C114: 2233.27678 | D114: 3904.68541 | E114: 92.12748523 | F114: 78.97905629 | G114: 250.0855978
A115: 98 | B115: 3569.910525 | C115: 2246.425209 | D115: 3983.664466 | E115: 92.33109759 | F115: 79.44404591 | G115: 251.2191894
A116: 99 | B116: 3577.579428 | C116: 2259.31226 | D116: 4063.108512 | E116: 92.52944379 | F116: 79.899792 | G116: 252.3290278
A117: 100 | B117: 3585.049984 | C117: 2271.941912 | D117: 4143.008304 | E117: 92.72266002 | F117: 80.34643525 | G117: 253.4155305
A118: 101 | B118: 3592.327324 | C118: 2284.318137 | D118: 4223.354739 | E118: 92.91087896 | F118: 80.78411613 | G118: 254.4791112
A119: 102 | B119: 3599.416445 | C119: 2296.4449 | D119: 4304.138855 | E119: 93.09422987 | F119: 81.21297488 | G119: 255.5201796
A120: 103 | B120: 3606.322215 | C120: 2308.326155 | D120: 4385.35183 | E120: 93.27283864 | F120: 81.63315133 | G120: 256.5391413
A121: 104 | B121: 3613.049376 | C121: 2319.965842 | D121: 4466.984982 | E121: 93.44682793 | F121: 82.04478482 | G121: 257.5363976
A122: 105 | B122: 3619.602548 | C122: 2331.367885 | D122: 4549.029766 | E122: 93.61631721 | F122: 82.44801411 | G122: 258.5123454
A123: 106 | B123: 3625.986231 | C123: 2342.536188 | D123: 4631.47778 | E123: 93.78142287 | F123: 82.84297726 | G123: 259.4673774
A124: 107 | B124: 3632.204808 | C124: 2353.474634 | D124: 4714.320758 | E124: 93.94225829 | F124: 83.22981158 | G124: 260.4018815
A125: 108 | B125: 3638.26255 | C125: 2364.187081 | D125: 4797.550569 | E125: 94.09893391 | F125: 83.60865353 | G125: 261.316241
A126: 109 | B126: 3644.163616 | C126: 2374.677361 | D126: 4881.159223 | E126: 94.25155732 | F126: 83.97963865 | G126: 262.2108346
A127: 110 | B127: 3649.912059 | C127: 2384.94928 | D127: 4965.138861 | E127: 94.40023332 | F127: 84.34290148 | G127: 263.0860363
A128: 111 | B128: 3655.511826 | C128: 2395.006611 | D128: 5049.481763 | E128: 94.54506401 | F128: 84.69857552 | G128: 263.942215
A129: 112 | B129: 3660.966762 | C129: 2404.8531 | D129: 5134.180338 | E129: 94.68614884 | F129: 85.04679316 | G129: 264.7797352
A130: 113 | B130: 3666.280613 | C130: 2414.492456 | D130: 5219.227132 | E130: 94.8235847 | F130: 85.38768562 | G130: 265.5989559
A131: 114 | B131: 3671.457028 | C131: 2423.928355 | D131: 5304.614817 | E131: 94.95746595 | F131: 85.72138291 | G131: 266.4002318
A132: 115 | B132: 3676.499562 | C132: 2433.164438 | D132: 5390.3362 | E132: 95.08788454 | F132: 86.04801377 | G132: 267.1839121
A133: 116 | B133: 3681.411678 | C133: 2442.204309 | D133: 5476.384214 | E133: 95.21493003 | F133: 86.36770565 | G133: 267.9503413
A134: 117 | B134: 3686.196748 | C134: 2451.051533 | D134: 5562.75192 | E134: 95.33868965 | F134: 86.68058467 | G134: 268.699859
A135: 118 | B135: 3690.858058 | C135: 2459.709638 | D135: 5649.432504 | E135: 95.45924838 | F135: 86.98677554 | G135: 269.4327995
A136: 119 | B136: 3695.398809 | C136: 2468.182111 | D136: 5736.41928 | E136: 95.57668902 | F136: 87.28640159 | G136: 270.1494922
A137: 120 | B137: 3699.82212 | C137: 2476.472398 | D137: 5823.705681 | E137: 95.69109222 | F137: 87.57958472 | G137: 270.8502617
A138: 121 | B138: 3604.131028 | C138: 2484.583906 | D138: 5911.285266 | E138: 93.21616644 | F138: 87.86644536 | G138: 268.9490572
A139: 122 | B139: 3510.914862 | C139: 2489.933627 | D139: 5999.151711 | E139: 90.8052514 | F139: 88.05563639 | G139: 266.9165242
A140: 123 | B140: 3420.10961 | C140: 2492.683242 | D140: 6087.207348 | E140: 88.45669155 | F140: 88.15287556 | G140: 264.7624427
A141: 124 | B141: 3331.652919 | C141: 2492.987058 | D141: 6175.360223 | E141: 86.16887415 | F141: 88.16361991 | G141: 262.496114
A142: 125 | B142: 3245.484045 | C142: 2490.992312 | D142: 6263.523843 | E142: 83.94022818 | F142: 88.09307642 | G142: 260.126381
A143: 126 | B143: 3161.543817 | C143: 2486.839464 | D143: 6351.61692 | E143: 81.76922323 | F143: 87.94621239 | G143: 257.661648
A144: 127 | B144: 3079.774593 | C144: 2480.662475 | D144: 6439.563132 | E144: 79.65436851 | F144: 87.72776532 | G144: 255.1098991
A145: 128 | B145: 3000.120225 | C145: 2472.589078 | D145: 6527.290897 | E145: =B145*lambdaMutter -> 77.59421176 | F145: =C145*lambdaTochter1 -> 87.44225245 | G145: =E145+GewFaktor*F145 -> 252.4787167
A146: 129 | B146: =IF(A146<=ZufuhrDauer,B145-E145+ZufuhrAnzahl,B145-E145) -> 2922.526013 | C146: =C145+E145-F145 -> 2462.741037 | D146: =D145+F145 -> 6614.73315 | E146: 75.58733828 | F146: 87.09397991 | G146: 249.7752981
A147: 130 | B147: 2846.938675 | C147: 2451.234395 | D147: 6701.82713 | E147: 73.63236999 | F147: 86.68705154 | G147: 247.0064731
A148: 131 | B148: 2773.306305 | C148: 2438.179714 | D148: 6788.514181 | E148: 71.7279644 | F148: 86.22537727 | G148: 244.1787189
A149: 132 | B149: 2701.57834 | C149: 2423.682301 | D149: 6874.739559 | E149: 69.87281379 | F149: 85.7126813 | G149: 241.2981764
A150: 133 | B150: 2631.705527 | C150: 2407.842434 | D150: 6960.45224 | E150: 68.06564425 | F150: 85.1525099 | G150: 238.370664
A151: 134 | B151: 2563.639882 | C151: 2390.755568 | D151: 7045.60475 | E151: 66.30521479 | F151: 84.54823884 | G151: 235.4016925
A152: 135 | B152: 2497.334668 | C152: 2372.512544 | D152: 7130.152989 | E152: 64.59031656 | F152: 83.90308064 | G152: 232.3964778
A153: 136 | B153: 2432.744351 | C153: 2353.19978 | D153: 7214.056069 | E153: 62.91977194 | F153: 83.22009146 | G153: 229.3599549
A154: 137 | B154: 2369.824579 | C154: 2332.89946 | D154: 7297.276161 | E154: 61.29243378 | F154: 82.50217772 | G154: 226.2967892
A155: 138 | B155: 2308.532145 | C155: 2311.689716 | D155: 7379.778338 | E155: 59.70718462 | F155: 81.75210251 | G155: 223.2113896
A156: 139 | B156: 2248.824961 | C156: 2289.644798 | D156: 7461.530441 | E156: 58.16293586 | F156: 80.97249166 | G156: 220.1079192
A157: 140 | B157: 2190.662025 | C157: 2266.835243 | D157: 7542.502933 | E157: 56.65862709 | F157: 80.16583965 | G157: 216.9903064
A158: 141 | B158: 2134.003398 | C158: 2243.32803 | D158: 7622.668772 | E158: 55.19322531 | F158: 79.33451526 | G158: 213.8622558
A159: 142 | B159: 2078.810172 | C159: 2219.18674 | D159: 7702.003288 | E159: 53.76572425 | F159: 78.48076694 | G159: 210.7272581
A160: 143 | B160: 2025.044448 | C160: 2194.471697 | D160: 7780.484054 | E160: 52.37514365 | F160: 77.60672805 | G160: 207.5885998
A161: 144 | B161: 1972.669304 | C161: 2169.240113 | D161: 7858.090783 | E161: 51.0205286 | F161: 76.71442185 | G161: 204.4493723
A162: 145 | B162: 1921.648776 | C162: 2143.54622 | D162: 7934.805204 | E162: 49.70094892 | F162: 75.80576626 | G162: 201.3124814
A163: 146 | B163: 1871.947827 | C163: 2117.441402 | D163: 8010.610971 | E163: 48.41549845 | F163: 74.88257847 | G163: 198.1806554
A164: 147 | B164: 1823.532328 | C164: 2090.974322 | D164: 8085.493549 | E164: 47.16329448 | F164: 73.9465794 | G164: 195.0564533
A165: 148 | B165: 1776.369034 | C165: 2064.191037 | D165: 8159.440129 | E165: 45.94347715 | F165: 72.99939784 | G165: 191.9422728
A166: =A165+1 -> 149 | B166: 1730.425557 | C166: 2037.135117 | D166: 8232.439526 | E166: 44.7552088 | F166: 72.04257462 | G166: 188.840358
A167: 150 | B167: 1685.670348 | C167: 2009.847751 | D167: 8304.482101 | E167: 43.59767347 | F167: 71.07756642 | G167: 185.7528063
A168: 151 | B168: 1642.072675 | C168: 1982.367858 | D168: 8375.559667 | E168: 42.47007629 | F168: 70.10574957 | G168: 182.6815754
A169: 152 | B169: 1599.602598 | C169: 1954.732185 | D169: 8445.665417 | E169: 41.37164295 | F169: 69.1284236 | G169: 179.6284902
A170: 153 | B170: 1558.230955 | C170: 1926.975404 | D170: 8514.793841 | E170: 40.30161916 | F170: 68.14681471 | G170: 176.5952486
A171: 154 | B171: 1517.929336 | C171: 1899.130209 | D171: 8582.940655 | E171: 39.25927014 | F171: 67.16207906 | G171: 173.5834283
A172: 155 | B172: 1478.670066 | C172: 1871.2274 | D172: 8650.102734 | E172: 38.24388012 | F172: 66.17530593 | G172: 170.594492
A173: 156 | B173: 1440.426186 | C173: 1843.295974 | D173: 8716.27804 | E173: 37.25475185 | F173: 65.18752077 | G173: 167.6297934
A174: 157 | B174: 1403.171434 | C174: 1815.363205 | D174: 8781.465561 | E174: 36.2912061 | F174: 64.19968812 | G174: 164.6905823
A175: 158 | B175: 1366.880228 | C175: 1787.454723 | D175: 8845.665249 | E175: 35.3525812 | F175: 63.21271436 | G175: 161.7780099
A176: 159 | B176: 1331.527647 | C176: 1759.59459 | D176: 8908.877964 | E176: 34.43823262 | F176: 62.22745045 | G176: 158.8931335
A177: 160 | B177: 1297.089414 | C177: 1731.805372 | D177: 8971.105414 | E177: 33.54753248 | F177: 61.24469443 | G177: 156.0369213
A178: 161 | B178: 1263.541882 | C178: 1704.10821 | D178: 9032.350108 | E178: 32.67986913 | F178: 60.26519393 | G178: 153.210257
A179: 162 | B179: 1230.862013 | C179: 1676.522885 | D179: 9092.615302 | E179: 31.83464678 | F179: 59.28964852 | G179: 150.4139438
A180: 163 | B180: 1199.027366 | C180: 1649.067883 | D180: 9151.904951 | E180: 31.011285 | F180: 58.31871193 | G180: 147.6487089
A181: 164 | B181: 1168.016081 | C181: 1621.760456 | D181: 9210.223663 | E181: 30.2092184 | F181: 57.35299428 | G181: 144.915207
A182: 165 | B182: 1137.806862 | C182: 1594.616681 | D182: 9267.576657 | E182: 29.42789622 | F182: 56.39306409 | G182: 142.2140244
A183: 166 | B183: 1108.378966 | C183: 1567.651513 | D183: 9323.969721 | E183: 28.66678192 | F183: 55.43945031 | G183: 139.5456825
A184: 167 | B184: 1079.712184 | C184: 1540.878844 | D184: 9379.409171 | E184: 27.92535285 | F184: 54.49264421 | G184: 136.9106413
A185: 168 | B185: 1051.786831 | C185: 1514.311553 | D185: 9433.901816 | E185: 27.20309988 | F185: 53.55310119 | G185: 134.3093023
A186: 169 | B186: 1024.583732 | C186: 1487.961552 | D186: 9487.454917 | E186: 26.49952704 | F186: 52.62124257 | G186: 131.7420122
A187: 170 | B187: 998.0842045 | C187: 1461.839836 | D187: 9540.076159 | E187: 25.8141512 | F187: 51.69745718 | G187: 129.2090656
A188: 171 | B188: 972.2700533 | C188: 1435.95653 | D188: 9591.773617 | E188: 25.14650172 | F188: 50.78210307 | G188: 126.7107079
A189: 172 | B189: 947.1235515 | C189: 1410.320929 | D189: 9642.55572 | E189: 24.49612013 | F189: 49.87550895 | G189: 124.247138
A190: 173 | B190: 922.6274314 | C190: 1384.94154 | D190: 9692.431229 | E190: 23.86255981 | F190: 48.9779757 | G190: 121.8185112
A191: 174 | B191: 898.7648716 | C191: 1359.826124 | D191: 9741.409204 | E191: 23.2453857 | F191: 48.08977775 | G191: 119.4249412
A192: 175 | B192: 875.5194859 | C192: 1334.981732 | D192: 9789.498982 | E192: 22.644174 | F192: 47.21116447 | G192: 117.0665029
A193: 176 | B193: 852.8753119 | C193: 1310.414742 | D193: 9836.710147 | E193: 22.05851186 | F193: 46.3423614 | G193: 114.7432347
A194: 177 | B194: 830.8168 | C194: 1286.130892 | D194: 9883.052508 | E194: 21.48799711 | F194: 45.48357151 | G194: 112.4551401
A195: 178 | B195: 809.3288029 | C195: 1262.135318 | D195: 9928.536079 | E195: 20.93223798 | F195: 44.63497637 | G195: 110.2021907
A196: 179 | B196: 788.396565 | C196: 1238.432579 | D196: 9973.171056 | E196: 20.39085284 | F196: 43.79673727 | G196: 107.9843274
A197: 180 | B197: 768.0057121 | C197: 1215.026695 | D197: 10016.96779 | E197: 19.86346993 | F197: 42.96899631 | G197: 105.8014626
A198: 181 | B198: 748.1422422 | C198: 1191.921168 | D198: 10059.93679 | E198: 19.34972708 | F198: 42.15187741 | G198: 103.6534819
A199: 182 | B199: 728.7925151 | C199: 1169.119018 | D199: 10102.08867 | E199: 18.84927153 | F199: 41.3454873 | G199: 101.5402461
A200: 183 | B200: 709.9432436 | C200: 1146.622802 | D200: 10143.43415 | E200: 18.36175961 | F200: 40.54991646 | G200: 99.46159253
A201: 184 | B201: 691.581484 | C201: 1124.434645 | D201: 10183.98407 | E201: 17.88685656 | F201: 39.76524001 | G201: 97.41733658
A202: 185 | B202: 673.6946274 | C202: 1102.556262 | D202: 10223.74931 | E202: 17.42423625 | F202: 38.99151859 | G202: 95.40727343
... 815 more rows
